fUSD/lending_fUSD_20240419
["ID","MTS","AMOUNT","RATE_DAILY","PERIOD"]
[322971460,1713550248066,-500.0,0.00016438,2]
[322971461,1713550248076,-2628.21,0.00016438,2]
[322971462,1713550248085,-2125.19,0.00016438,2]
[322971463,1713550248095,-885.19,0.00016438,2]
[322971464,1713550248104,-500.0,0.00016438,2]
[322971465,1713550248114,-7292.45,0.00016438,2]
[322971466,1713550248123,-4113.89,0.00016438,2]
[322971467,1713550248132,-500.0,0.00016438,2]
[322971468,1713550248142,-500.0,0.00016438,2]
[322971469,1713550248153,-500.0,0.00016438,2]
[322971470,1713550248162,-2233.23,0.00016438,2]
[322971471,1713550248171,-1539.43,0.00016438,2]
[322971472,1713550248180,-6198.87,0.00016438,2]
[322971473,1713550248192,-500.0,0.00016438,2]
[322971474,1713550248201,-945.43,0.00016438,2]
[322971475,1713550248214,-1587.36,0.00016438,2]
[322971476,1713550248223,-500.0,0.00016438,2]
[322971477,1713550248234,-3172.86,0.00016438,2]
[322971478,1713550248243,-500.0,0.00016438,2]
[322971479,1713550248254,-500.0,0.00016438,2]
[322971480,1713550248264,-500.0,0.00016438,2]
[322971481,1713550248275,-500.0,0.00016438,2]
[322971482,1713550248285,-4037.13,0.00016438,2]
[322971483,1713550248295,-579.03,0.00016438,2]
[322971484,1713550248304,-500.0,0.00016438,2]
[322971485,1713550248314,-7917.35,0.00016438,2]
[322971486,1713550248324,-674.06,0.00016438,2]
[322971487,1713550248333,-3113.6,0.00016438,2]
[322971488,1713550248342,-699.55,0.00016438,2]
[322971489,1713550248354,-31358.2,0.00016438,2]
[322971490,1713550248364,-1628.35,0.00016438,2]
[322971491,1713550248373,-2214.1,0.00016438,2]
[322971492,1713550248383,-2497.8,0.00016438,2]
[322971493,1713550248392,-500.0,0.00016438,2]
[322971494,1713550248402,-500.0,0.00016438,2]
[322971495,1713550248411,-500.0,0.00016438,2]
[322971496,1713550248420,-7631.38,0.00016438,2]
[322971497,1713550248429,-511.81,0.00016438,2]
[322971498,1713550248438,-1102.36,0.00016438,2]
[322971499,1713550248447,-500.0,0.00016438,2]
[322971500,1713550248457,-500.0,0.00016438,2]
[322971501,1713550248471,-500.0,0.00016438,2]
[322971502,1713550248480,-500.0,0.00016438,2]
[322971503,1713550248490,-1088.33,0.00016438,2]
[322971504,1713550248501,-650.6,0.00016438,2]
[322971505,1713550248510,-500.0,0.00016438,2]
[322971506,1713550248520,-927.01,0.00016438,2]
[322971507,1713550248530,-30145.83,0.00016438,2]
[322971508,1713550248539,-684.44,0.00016438,2]
[322971509,1713550248548,-500.0,0.00016438,2]
[322971510,1713550248558,-500.0,0.00016438,2]
[322971511,1713550248567,-2903.13,0.00016438,2]
[322971512,1713550248577,-2057.09,0.00016438,2]
[322971513,1713550248587,-500.0,0.00016438,2]
[322971514,1713550248596,-983.0,0.00016438,2]
[322971515,1713550248606,-500.0,0.00016438,2]
[322971516,1713550248617,-993.39,0.00016438,2]
[322971517,1713550248628,-4749.84,0.00016438,2]
[322971518,1713550248640,-500.0,0.00016438,2]
[322971519,1713550248651,-500.0,0.00016438,2]
[322971520,1713550248662,-500.0,0.00016438,2]
[322971521,1713550248672,-1686.03,0.00016438,2]
[322971522,1713550248682,-500.0,0.00016438,2]
[322971523,1713550248691,-2279.27,0.00016438,2]
[322971524,1713550248700,-500.0,0.00016438,2]
[322971525,1713550248712,-11179.26,0.00016438,2]
[322971526,1713550248721,-2538.81,0.00016438,2]
[322971527,1713550248730,-1445.92,0.00016438,2]
[322971528,1713550248740,-500.0,0.00016438,2]
[322971529,1713550248749,-503.13,0.00016438,2]
[322971530,1713550248758,-500.0,0.00016438,2]
[322971531,1713550248768,-1438.25,0.00016438,2]
[322971532,1713550248778,-2733.78,0.00016438,2]
[322971533,1713550248787,-712.12,0.00016438,2]
[322971534,1713550248797,-10359.81,0.00016438,2]
[322971535,1713550248807,-500.0,0.00016438,2]
[322971536,1713550248816,-500.0,0.00016438,2]
[322971537,1713550248826,-500.0,0.00016438,2]
[322971538,1713550248837,-892.9,0.00016438,2]
[322971539,1713550248846,-2625.45,0.00016438,2]
[322971540,1713550248856,-500.0,0.00016438,2]
[322971541,1713550248866,-2739.28,0.00016438,2]
[322971542,1713550248878,-500.0,0.00016438,2]
[322971543,1713550248888,-3965.39,0.00016438,2]
[322971544,1713550248898,-2605.19,0.00016438,2]
[322971545,1713550248908,-1396.75,0.00016438,2]
[322971546,1713550248918,-2508.83,0.00016438,2]
[322971547,1713550248929,-500.0,0.00016438,2]
[322971548,1713550248939,-2827.48,0.00016438,2]
[322971549,1713550248949,-500.0,0.00016438,2]
[322971550,1713550248958,-1659.81,0.00016438,2]
[322971551,1713550248970,-666.8,0.00016438,2]
[322971552,1713550248978,-1359.47,0.00016438,2]
[322971553,1713550248987,-1824.21,0.00016438,2]
[322971554,1713550248996,-849.69,0.00016438,2]
[322971555,1713550249005,-828.46,0.00016438,2]
[322971556,1713550249014,-500.0,0.00016438,2]
[322971557,1713550249024,-537.22,0.00016438,2]
[322971558,1713550249033,-1861.6,0.00016438,2]
[322971559,1713550249043,-500.0,0.00016438,2]
[322971560,1713550249052,-500.0,0.00016438,2]
[322971561,1713550249061,-1564.08,0.00016438,2]
[322971562,1713550249070,-697.99,0.00016438,2]
[322971563,1713550249079,-7208.09,0.00016438,2]
[322971564,1713550249088,-500.0,0.00016438,2]
[322971565,1713550249098,-2082.85,0.00016438,2]
[322971566,1713550249107,-803.9,0.00016438,2]
[322971567,1713550249116,-601.54,0.00016438,2]
[322971568,1713550249125,-592.26,0.00016438,2]
[322971569,1713550249135,-1071.64,0.00016438,2]
[322971570,1713550249144,-3131.36,0.00016438,2]
[322971571,1713550249153,-643.97,0.00016438,2]
[322971572,1713550249163,-500.0,0.00016438,2]
[322971573,1713550249172,-500.0,0.00016438,2]
[322971574,1713550249182,-500.0,0.00016438,2]
[322971575,1713550249195,-500.0,0.00016438,2]
[322971576,1713550249204,-1287.5,0.00016438,2]
[322971577,1713550249215,-500.0,0.00016438,2]
[322971578,1713550249225,-697.03,0.00016438,2]
[322971579,1713550249234,-500.0,0.00016438,2]
[322971580,1713550249244,-3888.25,0.00016438,2]
[322971581,1713550249253,-2048.81,0.00016438,2]
[322971582,1713550249263,-2670.31,0.00016438,2]
[322971583,1713550249273,-500.0,0.00016438,2]
[322971584,1713550249283,-4529.04,0.00016438,2]
[322971585,1713550249292,-500.0,0.00016438,2]
[322971586,1713550249302,-926.8,0.00016438,2]
[322971587,1713550249311,-1153.13,0.00016438,2]
[322971588,1713550249321,-1481.24,0.00016438,2]
[322971589,1713550249330,-500.0,0.00016438,2]
[322971590,1713550249340,-1799.04,0.00016438,2]
[322971591,1713550249349,-3509.32,0.00016438,2]
[322971592,1713550249359,-611.48,0.00016438,2]
[322971593,1713550249368,-22821.23,0.00016438,2]
[322971594,1713550249377,-500.0,0.00016438,2]
[322971595,1713550249387,-500.0,0.00016438,2]
[322971596,1713550249396,-2526.81,0.00016438,2]
[322971597,1713550249500,-2370.21,0.00016438,2]
[322971598,1713550249509,-500.0,0.00016438,2]
[322971599,1713550249519,-150.7485354,0.00016438,2]
[322971600,1713550249528,-1243.82,0.00016438,2]
[322971601,1713550249538,-500.0,0.00016438,2]
[322971602,1713550249546,-500.0,0.00016438,2]
[322971603,1713550249555,-500.0,0.00016438,2]
[322971604,1713550249564,-2158.13,0.00016438,2]
[322971605,1713550249573,-750.0,0.00016438,2]
[322971606,1713550249583,-1988.26,0.00016438,2]
[322971607,1713550249593,-887.64,0.00016438,2]
[322971608,1713550249602,-500.0,0.00016438,2]
[322971609,1713550249611,-710.05,0.00016438,2]
[322971610,1713550249620,-2848.83,0.00016438,2]
[322971611,1713550249630,-2152.67,0.00016438,2]
[322971612,1713550249641,-674.0,0.00016438,2]
[322971613,1713550249652,-4664.54,0.00016438,2]
[322971614,1713550249664,-1473.22,0.00016438,2]
[322971615,1713550249673,-825.5,0.00016438,2]
[322971616,1713550249684,-1558.01,0.00016438,2]
[322971617,1713550249693,-500.0,0.00016438,2]
[322971618,1713550249702,-3745.44,0.00016438,2]
[322971619,1713550249714,-6923.6,0.00016438,2]
[322971620,1713550249723,-4669.18,0.00016438,2]
[322971621,1713550249733,-3308.99,0.00016438,2]
[322971622,1713550249742,-500.0,0.00016438,2]
[322971623,1713550249752,-981.1,0.00016438,2]
[322971624,1713550249761,-1665.47,0.00016438,2]
[322971625,1713550249771,-500.0,0.00016438,2]
[322971626,1713550249781,-763.31,0.00016438,2]
[322971627,1713550249790,-500.0,0.00016438,2]
[322971628,1713550249799,-748.5,0.00016438,2]
[322971629,1713550249809,-691.84,0.00016438,2]
[322971630,1713550249820,-500.0,0.00016438,2]
[322971631,1713550249829,-519.9,0.00016438,2]
[322971632,1713550249838,-1038.53,0.00016438,2]
[322971633,1713550249848,-1488.12,0.00016438,2]
[322971634,1713550249858,-500.0,0.00016438,2]
[322971635,1713550249868,-910.64,0.00016438,2]
[322971636,1713550249877,-2035.0,0.00016438,2]
[322971637,1713550249888,-2936.05,0.00016438,2]
[322971638,1713550249898,-769.33,0.00016438,2]
[322971639,1713550249908,-500.0,0.00016438,2]
[322971640,1713550249921,-2335.48,0.00016438,2]
[322971641,1713550249931,-500.0,0.00016438,2]
[322971642,1713550249942,-500.0,0.00016438,2]
[322971643,1713550249951,-369.53048829,0.00016438,2]
[322971644,1713550249963,-2091.97,0.00016438,2]
[322971645,1713550249974,-1433.39,0.00016438,2]
[322971646,1713550249985,-500.0,0.00016438,2]
[322971647,1713550249997,-2284.57,0.00016438,2]
[322971648,1713550250007,-1173.86,0.00016438,2]
[322971649,1713550250017,-3333.61,0.00016438,2]
[322971650,1713550250027,-500.0,0.00016438,2]
[322971651,1713550250037,-880.67,0.00016438,2]
[322971652,1713550250048,-1496.61,0.00016438,2]
[322971653,1713550250058,-551.88,0.00016438,2]
[322971654,1713550250068,-500.0,0.00016438,2]
[322971655,1713550250078,-1776.01,0.00016438,2]
[322971656,1713550250087,-1541.61,0.00016438,2]
[322971657,1713550250097,-1871.58,0.00016438,2]
[322971658,1713550250107,-500.0,0.00016438,2]
[322971659,1713550250117,-518.74,0.00016438,2]
[322971660,1713550250126,-961.23,0.00016438,2]
[322971661,1713550250135,-500.0,0.00016438,2]
[322971662,1713550250145,-1770.53,0.00016438,2]
[322971663,1713550250155,-500.0,0.00016438,2]
[322971664,1713550250164,-1047.63,0.00016438,2]
[322971665,1713550250173,-675.15,0.00016438,2]
[322971666,1713550250182,-974.5,0.00016438,2]
[322971667,1713550250195,-1384.11,0.00016438,2]
[322971668,1713550250205,-500.0,0.00016438,2]
[322971669,1713550250215,-2166.27,0.00016438,2]
[322971670,1713550250225,-500.0,0.00016438,2]
[322971671,1713550250236,-1641.9,0.00016438,2]
[322971672,1713550250246,-7156.86,0.00016438,2]
[322971673,1713550250256,-500.0,0.00016438,2]
[322971674,1713550250266,-631.81180014,0.00016438,2]
[322971675,1713550250277,-500.0,0.00016438,2]
[322971676,1713550250288,-563.49,0.00016438,2]
[322971677,1713550250298,-500.0,0.00016438,2]
[322971678,1713550250308,-1714.88,0.00016438,2]
[322971679,1713550250318,-712.06,0.00016438,2]
[322971680,1713550250328,-2853.0,0.00016438,2]
[322971681,1713550250337,-500.0,0.00016438,2]
[322971682,1713550250346,-1744.72,0.00016438,2]
[322971683,1713550250355,-1145.41,0.00016438,2]
[322971684,1713550250365,-500.0,0.00016438,2]
[322971685,1713550250374,-500.0,0.00016438,2]
[322971686,1713550250383,-500.0,0.00016438,2]
[322971687,1713550250393,-500.0,0.00016438,2]
[322971688,1713550250403,-500.0,0.00016438,2]
[322971689,1713550250412,-500.0,0.00016438,2]
[322971690,1713550250421,-4554.5,0.00016438,2]
[322971691,1713550250430,-1686.92,0.00016438,2]
[322971692,1713550250439,-1887.51,0.00016438,2]
[322971693,1713550250449,-500.0,0.00016438,2]
[322971694,1713550250458,-571.55,0.00016438,2]
[322971695,1713550250470,-1248.95,0.00016438,2]
[322971696,1713550250479,-500.0,0.00016438,2]
[322971697,1713550250489,-1314.27,0.00016438,2]
[322971698,1713550250498,-500.0,0.00016438,2]
[322971699,1713550250507,-500.0,0.00016438,2]
[322971700,1713550250517,-500.0,0.00016438,2]
[322971701,1713550250526,-500.0,0.00016438,2]
[322971702,1713550250535,-1027.2,0.00016438,2]
[322971703,1713550250545,-500.0,0.00016438,2]
[322971704,1713550250554,-3137.2,0.00016438,2]
[322971705,1713550250563,-1014.94,0.00016438,2]
[322971706,1713550250572,-500.0,0.00016438,2]
[322971707,1713550250582,-500.0,0.00016438,2]
[322971708,1713550250591,-500.0,0.00016438,2]
[322971709,1713550250600,-500.0,0.00016438,2]
[322971710,1713550250610,-500.0,0.00016438,2]
[322971711,1713550250619,-625.92,0.00016438,2]
[322971712,1713550250628,-5154.02,0.00016438,2]
[322971713,1713550250638,-2280.67,0.00016438,2]
[322971714,1713550250647,-1884.41,0.00016438,2]
[322971715,1713550250657,-500.0,0.00016438,2]
[322971716,1713550250666,-1647.2,0.00016438,2]
[322971717,1713550250675,-740.45,0.00016438,2]
[322971718,1713550250685,-500.0,0.00016438,2]
[322971719,1713550250694,-509.09,0.00016438,2]
[322971720,1713550250703,-2354.29,0.00016438,2]
[322971721,1713550250715,-517.72,0.00016438,2]
[322971722,1713550250724,-500.0,0.00016438,2]
[322971723,1713550250734,-5651.87,0.00016438,2]
[322971724,1713550250743,-510.16,0.00016438,2]
[322971725,1713550250752,-500.0,0.00016438,2]
[322971726,1713550250762,-500.0,0.00016438,2]
[322971727,1713550250771,-500.0,0.00016438,2]
[322971728,1713550250780,-500.0,0.00016438,2]
[322971729,1713550250789,-200.0,0.00016438,2]
[322971730,1713550250811,-14117.98,0.00016465,2]
[322971731,1713550250832,-1223.49294636,0.000165,2]
[322971732,1713550250853,-19496.21587412,0.000165,2]
[322971733,1713550250875,-150.0,0.000165,2]
[322971734,1713550250897,-978.66058,0.0001654,2]
[322971735,1713550250919,-164.60549446,0.00016544,2]
[322971736,1713550250941,-2879.922971,0.00016559,2]
[322971737,1713550250953,-1237.0,0.00016576,2]
[322971738,1713550250964,-200.0,0.00016577,2]
[322971739,1713550250974,-1000.0,0.00016577,2]
[322971740,1713550250984,-500.0,0.00016577,2]
[322971741,1713550250993,-500.0,0.00016577,2]
[322971742,1713550251003,-849.99222,0.000166,2]
[322971743,1713550251012,-476380.91563669,0.00016698,2]
[322971744,1713550251021,-17171.5400383,0.000167,2]
[322971745,1713550251031,-482.0,0.000167,2]
[322971746,1713550251040,-2157.7563046,0.000167,2]
[322971747,1713550251049,-139516.0236526,0.000167,2]
[322971748,1713550251058,-8829.6342931,0.000167,2]
[322971749,1713550251068,-150.0,0.000167,2]
[322971750,1713550251077,-554.97172968,0.00016711,2]
[322971751,1713550251086,-14117.98,0.00016711,2]
[322971752,1713550251096,-500.0,0.00016712,2]
[322971753,1713550251105,-500.0,0.00016712,2]
[322971754,1713550251114,-155.0,0.00016712,2]
[322971755,1713550251124,-22835.92523755,0.00016712,2]
[322971756,1713550251134,-500.0,0.00016712,2]
[322971757,1713550251143,-500.0,0.00016712,2]
[322971758,1713550251153,-500.0,0.00016712,2]
[322971759,1713550251162,-500.0,0.00016712,2]
[322971760,1713550251171,-737.6,0.00016712,2]
[322971761,1713550251181,-500.0,0.00016712,2]
[322971762,1713550251194,-500.0,0.00016712,2]
[322971763,1713550251203,-510.03,0.00016712,2]
[322971764,1713550251214,-824.7,0.00016712,2]
[322971765,1713550251223,-478.61878476,0.00016712,2]
[322971766,1713550251233,-1028.85,0.00016712,2]
[322971767,1713550251241,-500.0,0.00016712,2]
[322971768,1713550251251,-669.58,0.00016712,2]
[322971769,1713550251260,-500.0,0.00016712,2]
[322971770,1713550251270,-500.0,0.00016712,2]
[322971771,1713550251280,-500.0,0.00016712,2]
[322971772,1713550251289,-843.86,0.00016712,2]
[322971773,1713550251299,-500.0,0.00016712,2]
[322971774,1713550251308,-500.0,0.00016712,2]
[322971775,1713550251317,-500.0,0.00016712,2]
[322971776,1713550251326,-785.89,0.00016712,2]
[322971777,1713550251336,-500.0,0.00016712,2]
[322971778,1713550251345,-500.0,0.00016712,2]
[322971779,1713550251354,-500.0,0.00016712,2]
[322971780,1713550251364,-729.76,0.00016712,2]
[322971781,1713550251373,-500.0,0.00016712,2]
[322971782,1713550251382,-1041.49,0.00016712,2]
[322971783,1713550251391,-500.0,0.00016712,2]
[322971784,1713550251401,-864.76,0.00016712,2]
[322971785,1713550251411,-500.0,0.00016712,2]
[322971786,1713550251420,-500.0,0.00016712,2]
[322971787,1713550251429,-383.28,0.00016712,2]
[322971788,1713550251439,-500.0,0.00016712,2]
[322971789,1713550251449,-500.0,0.00016712,2]
[322971790,1713550251458,-524.99,0.00016712,2]
[322971791,1713550251471,-500.0,0.00016712,2]
[322971792,1713550251481,-500.0,0.00016712,2]
[322971793,1713550251491,-500.0,0.00016712,2]
[322971794,1713550251501,-821.38,0.00016712,2]
[322971795,1713550251510,-500.0,0.00016712,2]
[322971796,1713550251520,-500.0,0.00016712,2]
[322971797,1713550251531,-541.76,0.00016712,2]
[322971798,1713550251541,-500.0,0.00016712,2]
[322971799,1713550251550,-1292.38,0.00016712,2]
[322971800,1713550251560,-500.0,0.00016712,2]
[322971801,1713550251570,-500.0,0.00016712,2]
[322971802,1713550251580,-568.29,0.00016712,2]
[322971803,1713550251590,-500.0,0.00016712,2]
[322971804,1713550251600,-527.43,0.00016712,2]
[322971805,1713550251610,-1152.89,0.00016712,2]
[322971806,1713550251620,-500.0,0.00016712,2]
[322971807,1713550251630,-553.82,0.00016712,2]
[322971808,1713550251639,-500.0,0.00016712,2]
[322971809,1713550251650,-792.7,0.00016712,2]
[322971810,1713550251660,-1140.35,0.00016712,2]
[322971811,1713550251671,-500.0,0.00016712,2]
[322971812,1713550251683,-500.0,0.00016712,2]
[322971813,1713550251693,-500.0,0.00016712,2]
[322971814,1713550251702,-624.37,0.00016712,2]
[322971815,1713550251715,-545.52,0.00016712,2]
[322971816,1713550251725,-673.43,0.00016712,2]
[322971817,1713550251735,-840.66,0.00016712,2]
[322971818,1713550251746,-500.0,0.00016712,2]
[322971819,1713550251757,-500.0,0.00016712,2]
[322971820,1713550251768,-500.0,0.00016712,2]
[322971821,1713550251778,-500.0,0.00016712,2]
[322971822,1713550251787,-500.0,0.00016712,2]
[322971823,1713550251797,-500.0,0.00016712,2]
[322971824,1713550251807,-1632.9,0.00016712,2]
[322971825,1713550251817,-709.84,0.00016712,2]
[322971826,1713550251826,-624.85,0.00016712,2]
[322971827,1713550251836,-601.09,0.00016712,2]
[322971828,1713550251846,-500.0,0.00016712,2]
[322971829,1713550251857,-500.0,0.00016712,2]
[322971830,1713550251866,-500.0,0.00016712,2]
[322971831,1713550251876,-500.0,0.00016712,2]
[322971832,1713550251887,-500.0,0.00016712,2]
[322971833,1713550251897,-626.24,0.00016712,2]
[322971834,1713550251906,-678.02,0.00016712,2]
[322971835,1713550251915,-500.0,0.00016712,2]
[322971836,1713550251924,-917.02,0.00016712,2]
[322971837,1713550251934,-500.0,0.00016712,2]
[322971838,1713550251945,-500.0,0.00016712,2]
[322971839,1713550251956,-722.61,0.00016712,2]
[322971840,1713550251971,-557.42,0.00016712,2]
[322971841,1713550251981,-500.0,0.00016712,2]
[322971842,1713550251990,-500.0,0.00016712,2]
[322971843,1713550252000,-500.0,0.00016712,2]
[322971844,1713550252010,-500.0,0.00016712,2]
[322971845,1713550252019,-500.0,0.00016712,2]
[322971846,1713550252029,-634.15,0.00016712,2]
[322971847,1713550252039,-564.97,0.00016712,2]
[322971848,1713550252049,-757.29,0.00016712,2]
[322971849,1713550252059,-500.0,0.00016712,2]
[322971850,1713550252069,-500.0,0.00016712,2]
[322971851,1713550252078,-500.0,0.00016712,2]
[322971852,1713550252088,-500.0,0.00016712,2]
[322971853,1713550252098,-500.0,0.00016712,2]
[322971854,1713550252108,-500.0,0.00016712,2]
[322971855,1713550252119,-500.0,0.00016712,2]
[322971856,1713550252131,-500.0,0.00016712,2]
[322971857,1713550252141,-1295.17,0.00016712,2]
[322971858,1713550252151,-1264.11,0.00016712,2]
[322971859,1713550252162,-500.0,0.00016712,2]
[322971860,1713550252172,-500.0,0.00016712,2]
[322971861,1713550252182,-500.0,0.00016712,2]
[322971862,1713550252195,-833.84,0.00016712,2]
[322971863,1713550252204,-1172.05,0.00016712,2]
[322971864,1713550252217,-568.77200795,0.00016712,2]
[322971865,1713550252228,-675.87,0.00016712,2]
[322971866,1713550252238,-500.0,0.00016712,2]
[322971867,1713550252248,-500.0,0.00016712,2]
[322971868,1713550252258,-507.07,0.00016712,2]
[322971869,1713550252268,-1494.08,0.00016712,2]
[322971870,1713550252279,-630.61,0.00016712,2]
[322971871,1713550252290,-628.61,0.00016712,2]
[322971872,1713550252300,-622.74,0.00016712,2]
[322971873,1713550252309,-500.0,0.00016712,2]
[322971874,1713550252320,-560.64,0.00016712,2]
[322971875,1713550252331,-632.47,0.00016712,2]
[322971876,1713550252340,-500.0,0.00016712,2]
[322971877,1713550252350,-500.0,0.00016712,2]
[322971878,1713550252360,-500.0,0.00016712,2]
[322971879,1713550252370,-500.0,0.00016712,2]
[322971880,1713550252381,-519.62,0.00016712,2]
[322971881,1713550252392,-500.0,0.00016712,2]
[322971882,1713550252402,-500.0,0.00016712,2]
[322971883,1713550252414,-500.0,0.00016712,2]
[322971884,1713550252424,-778.12,0.00016712,2]
[322971885,1713550252436,-500.0,0.00016712,2]
[322971886,1713550252448,-500.0,0.00016712,2]
[322971887,1713550252459,-769.94,0.00016712,2]
[322971888,1713550252471,-500.0,0.00016712,2]
[322971889,1713550252481,-500.0,0.00016712,2]
[322971890,1713550252491,-500.0,0.00016712,2]
[322971891,1713550252503,-918.98,0.00016712,2]
[322971892,1713550252514,-1119.71,0.00016712,2]
[322971893,1713550252525,-500.0,0.00016712,2]
[322971894,1713550252536,-678.94,0.00016712,2]
[322971895,1713550252547,-1195.54,0.00016712,2]
[322971896,1713550252558,-500.0,0.00016712,2]
[322971897,1713550252568,-500.0,0.00016712,2]
[322971898,1713550252578,-546.45,0.00016712,2]
[322971899,1713550252588,-713.09,0.00016712,2]
[322971900,1713550252598,-1108.92,0.00016712,2]
[322971901,1713550252607,-628.66,0.00016712,2]
[322971902,1713550252617,-500.0,0.00016712,2]
[322971903,1713550252626,-500.0,0.00016712,2]
[322971904,1713550252635,-500.0,0.00016712,2]
[322971905,1713550252644,-665.31,0.00016712,2]
[322971906,1713550252654,-500.0,0.00016712,2]
[322971907,1713550252663,-500.0,0.00016712,2]
[322971908,1713550252673,-500.0,0.00016712,2]
[322971909,1713550252682,-774.86,0.00016712,2]
[322971910,1713550252691,-803.88,0.00016712,2]
[322971911,1713550252701,-500.0,0.00016712,2]
[322971912,1713550252712,-500.0,0.00016712,2]
[322971913,1713550252722,-619.43,0.00016712,2]
[322971914,1713550252731,-500.0,0.00016712,2]
[322971915,1713550252740,-500.0,0.00016712,2]
[322971916,1713550252750,-500.0,0.00016712,2]
[322971917,1713550252759,-1238.09,0.00016712,2]
[322971918,1713550252769,-812.22,0.00016712,2]
[322971919,1713550252778,-635.57,0.00016712,2]
[322971920,1713550252788,-500.0,0.00016712,2]
[322971921,1713550252799,-505.11954468,0.00016712,2]
[322971922,1713550252809,-500.0,0.00016712,2]
[322971923,1713550252819,-1066.58,0.00016712,2]
[322971924,1713550252829,-927.3,0.00016712,2]
[322971925,1713550252838,-500.0,0.00016712,2]
[322971926,1713550252849,-500.0,0.00016712,2]
[322971927,1713550252859,-279.67,0.00016712,2]
[322971928,1713550252869,-1052.06,0.00016712,2]
[322971929,1713550252880,-746.87,0.00016712,2]
[322971930,1713550252890,-1123.59,0.00016712,2]
[322971931,1713550252900,-500.0,0.00016712,2]
[322971932,1713550252910,-500.0,0.00016712,2]
[322971933,1713550252921,-1110.79,0.00016712,2]
[322971934,1713550252932,-857.16,0.00016712,2]
[322971935,1713550252943,-500.0,0.00016712,2]
[322971936,1713550252954,-926.62,0.00016712,2]
[322971937,1713550252967,-690.0,0.00016712,2]
[322971938,1713550252978,-500.0,0.00016712,2]
[322971939,1713550252989,-1082.94,0.00016712,2]
[322971940,1713550252999,-500.0,0.00016712,2]
[322971941,1713550253010,-500.0,0.00016712,2]
[322971942,1713550253020,-512.66,0.00016712,2]
[322971943,1713550253029,-593.65,0.00016712,2]
[322971944,1713550253039,-500.0,0.00016712,2]
[322971945,1713550253049,-500.0,0.00016712,2]
[322971946,1713550253059,-500.0,0.00016712,2]
[322971947,1713550253070,-500.0,0.00016712,2]
[322971948,1713550253081,-932.64,0.00016712,2]
[322971949,1713550253091,-1183.71,0.00016712,2]
[322971950,1713550253102,-500.0,0.00016712,2]
[322971951,1713550253113,-500.0,0.00016712,2]
[322971952,1713550253123,-1284.0,0.00016712,2]
[322971953,1713550253134,-500.0,0.00016712,2]
[322971954,1713550253145,-598.0,0.00016712,2]
[322971955,1713550253155,-945.16,0.00016712,2]
[322971956,1713550253167,-533.75,0.00016712,2]
[322971957,1713550253178,-500.0,0.00016712,2]
[322971958,1713550253192,-500.0,0.00016712,2]
[322971959,1713550253201,-550.25,0.00016712,2]